[Event "Titled Tuesday Blitz March 28 Early 2023"]
[White "Amilal Munkhdalai"]
[Black "Preotu, Razvan"]
[WhiteFideId "4903250"]
[BlackFideId "2613280"]
[WhiteElo "2293"]
[BlackElo "2407"]
[Result "1-0"]
[Round "11"]
[TimeControl "180+2"]
[Date "2023.03.28"]
[WhiteClock "0:00:05"]
[BlackClock "0:00:02"]

1. e4 {[%clk 0:03:00]}  c5 {[%clk 0:03:00]} 2. Nf3 {[%clk 0:03:00]}  d6 {[%clk 0:03:00]} 3. d4 {[%clk 0:03:00]}  cxd4 {[%clk 0:03:01]} 4. Nxd4 {[%clk 0:03:01]}  Nf6 {[%clk 0:03:02]} 5. f3 {[%clk 0:03:01]}  e5 {[%clk 0:03:01]} 6. Nb3 {[%clk 0:03:01]}  d5 {[%clk 0:03:01]} 7. Bg5 {[%clk 0:03:02]}  Be6 {[%clk 0:03:01]} 8. Bxf6 {[%clk 0:02:58]}  gxf6 {[%clk 0:03:01]} 9. exd5 {[%clk 0:02:58]}  Qxd5 {[%clk 0:03:02]} 10. Qxd5 {[%clk 0:02:57]}  Bxd5 {[%clk 0:03:03]} 11. Nc3 {[%clk 0:02:58]}  Be6 {[%clk 0:03:03]} 12. O-O-O {[%clk 0:02:58]}  Nc6 {[%clk 0:03:03]} 13. Nd5 {[%clk 0:02:56]}  O-O-O {[%clk 0:02:45]} 14. c4 {[%clk 0:02:29]}  Bh6+ {[%clk 0:02:05]} 15. Kb1 {[%clk 0:02:11]}  Nb4 {[%clk 0:02:00]} 16. Ne7+ {[%clk 0:01:35]}  Kb8 {[%clk 0:02:00]} 17. Be2 {[%clk 0:01:35]}  Rde8 {[%clk 0:00:49]} 18. a3 {[%clk 0:01:28]}  Rxe7 {[%clk 0:00:50]} 19. axb4 {[%clk 0:01:28]}  b6 {[%clk 0:00:39]} 20. Nc1 {[%clk 0:01:13]}  Rc7 {[%clk 0:00:37]} 21. b3 {[%clk 0:01:12]}  Rg8 {[%clk 0:00:29]} 22. g3 {[%clk 0:01:10]}  Be3 {[%clk 0:00:25]} 23. Na2 {[%clk 0:01:03]}  Bd4 {[%clk 0:00:22]} 24. Bd3 {[%clk 0:00:52]}  h5 {[%clk 0:00:23]} 25. Rc1 {[%clk 0:00:46]}  h4 {[%clk 0:00:15]} 26. g4 {[%clk 0:00:46]}  b5 {[%clk 0:00:02]} 27. c5 {[%clk 0:00:40]}  Bxb3 {[%clk 0:00:03]} 28. Nc3 {[%clk 0:00:39]}  a6 {[%clk 0:00:02]} 29. Ne2 {[%clk 0:00:36]}  Rd8 {[%clk 0:00:02]} 30. Be4 {[%clk 0:00:22]}  Bc4 {[%clk 0:00:02]} 31. Nxd4 {[%clk 0:00:22]}  Rxd4 {[%clk 0:00:03]} 32. Rhd1 {[%clk 0:00:22]}  Rdd7 {[%clk 0:00:03]} 33. Kc2 {[%clk 0:00:15]}  Be2 {[%clk 0:00:03]} 34. Rxd7 {[%clk 0:00:14]}  Rxd7 {[%clk 0:00:04]} 35. Re1 {[%clk 0:00:14]}  Bc4 {[%clk 0:00:04]} 36. Kc3 {[%clk 0:00:14]}  Rd8 {[%clk 0:00:01]} 37. Rg1 {[%clk 0:00:13]}  Ka7 {[%clk 0:00:01]} 38. Ra1 {[%clk 0:00:13]}  Rd7 {[%clk 0:00:01]} 39. Rg1 {[%clk 0:00:14]}  Rd8 {[%clk 0:00:02]} 40. Re1 {[%clk 0:00:11]}  Rd4 {[%clk 0:00:02]} 41. Rb1 {[%clk 0:00:05]}  Bd5 {[%clk 0:00:02]} 42. Re1 {[%clk 0:00:03]}  Bxe4 {[%clk 0:00:03]} 43. Rxe4 {[%clk 0:00:03]}  Rxe4 {[%clk 0:00:02]} 44. fxe4 {[%clk 0:00:04]}  h3 {[%clk 0:00:03]} 45. Kd3 {[%clk 0:00:04]}  Kb7 {[%clk 0:00:03]} 46. Kc3 {[%clk 0:00:05]}  Kc6 {[%clk 0:00:03]} 47. Kb3 {[%clk 0:00:05]}  Kc7 {[%clk 0:00:03]} 48. Kc3 {[%clk 0:00:05]}  Kd7 {[%clk 0:00:03]} 49. Kb3 {[%clk 0:00:06]}  Kc6 {[%clk 0:00:03]} 50. Kc3 {[%clk 0:00:06]}  Kb7 {[%clk 0:00:03]} 51. Kd3 {[%clk 0:00:05]}  a5 {[%clk 0:00:02]} 52. bxa5 {[%clk 0:00:05]}  Ka6 {[%clk 0:00:03]} 53. c6 {[%clk 0:00:05]}  f5 {[%clk 0:00:02]} 54. gxf5 {[%clk 0:00:05]}  f6 {[%clk 0:00:02]} 55. Kc3 {[%clk 0:00:05]} 1-0


[Site "https://www.chess.com"]

[Event "Titled Tuesday Blitz March 28 Early 2023"]
[White "Warmerdam, Max"]
[Black "Lewtak, Damian"]
[WhiteFideId "1048104"]
[BlackFideId "1141724"]
[WhiteElo "2518"]
[BlackElo "2302"]
[Result "1-0"]
[Round "11"]
[TimeControl "180+2"]
[Date "2023.03.28"]
[WhiteClock "0:00:20"]
[BlackClock "0:00:07"]

1. Nf3 {[%clk 0:03:00]}  Nf6 {[%clk 0:02:59]} 2. g3 {[%clk 0:03:01]}  d5 {[%clk 0:03:00]} 3. Bg2 {[%clk 0:03:01]}  Nc6 {[%clk 0:02:59]} 4. d4 {[%clk 0:02:59]}  Bf5 {[%clk 0:02:59]} 5. O-O {[%clk 0:02:59]}  Qc8 {[%clk 0:02:59]} 6. c4 {[%clk 0:02:56]}  e6 {[%clk 0:02:59]} 7. Nc3 {[%clk 0:02:52]}  Ne4 {[%clk 0:02:58]} 8. Bf4 {[%clk 0:02:34]}  Nxc3 {[%clk 0:02:55]} 9. bxc3 {[%clk 0:02:34]}  Be4 {[%clk 0:02:56]} 10. Qa4 {[%clk 0:02:31]}  Bd6 {[%clk 0:02:48]} 11. cxd5 {[%clk 0:02:16]}  exd5 {[%clk 0:02:38]} 12. Bxd6 {[%clk 0:02:14]}  cxd6 {[%clk 0:02:36]} 13. Ne1 {[%clk 0:02:12]}  Bxg2 {[%clk 0:02:34]} 14. Kxg2 {[%clk 0:02:13]}  O-O {[%clk 0:02:34]} 15. Nd3 {[%clk 0:02:12]}  g5 {[%clk 0:02:27]} 16. Qb5 {[%clk 0:01:52]}  Qe6 {[%clk 0:02:20]} 17. Qxb7 {[%clk 0:01:52]}  Qxe2 {[%clk 0:02:12]} 18. Qxc6 {[%clk 0:01:51]}  Qxd3 {[%clk 0:02:02]} 19. Qxd5 {[%clk 0:01:50]}  h6 {[%clk 0:01:59]} 20. Rac1 {[%clk 0:01:46]}  Rad8 {[%clk 0:01:54]} 21. Rfe1 {[%clk 0:01:44]}  Qd2 {[%clk 0:01:48]} 22. a4 {[%clk 0:01:41]}  Rfe8 {[%clk 0:01:42]} 23. Red1 {[%clk 0:01:40]}  Qb2 {[%clk 0:01:40]} 24. Qf3 {[%clk 0:01:34]}  Kg7 {[%clk 0:01:24]} 25. Rb1 {[%clk 0:01:33]}  Qe2 {[%clk 0:01:15]} 26. Rb7 {[%clk 0:01:30]}  Qxf3+ {[%clk 0:01:09]} 27. Kxf3 {[%clk 0:01:31]}  Rc8 {[%clk 0:01:09]} 28. Rd3 {[%clk 0:01:29]}  Ra8 {[%clk 0:01:00]} 29. c4 {[%clk 0:01:28]}  Rec8 {[%clk 0:00:59]} 30. Rc3 {[%clk 0:01:28]}  Rc6 {[%clk 0:00:57]} 31. Ke4 {[%clk 0:01:20]}  Ra6 {[%clk 0:00:57]} 32. Kd5 {[%clk 0:01:02]}  Rd8 {[%clk 0:00:30]} 33. Rf3 {[%clk 0:00:56]}  Rf8 {[%clk 0:00:28]} 34. Rd7 {[%clk 0:00:52]}  Rxa4 {[%clk 0:00:26]} 35. Rxd6 {[%clk 0:00:51]}  a5 {[%clk 0:00:25]} 36. c5 {[%clk 0:00:49]}  Ra1 {[%clk 0:00:23]} 37. c6 {[%clk 0:00:44]}  Rc1 {[%clk 0:00:17]} 38. Rd7 {[%clk 0:00:42]}  a4 {[%clk 0:00:16]} 39. Kd6 {[%clk 0:00:31]}  Kg6 {[%clk 0:00:12]} 40. d5 {[%clk 0:00:30]}  Rd1 {[%clk 0:00:09]} 41. Ra3 {[%clk 0:00:27]}  Ra8 {[%clk 0:00:09]} 42. Kc5 {[%clk 0:00:25]}  Rc1+ {[%clk 0:00:08]} 43. Kb6 {[%clk 0:00:25]}  Rb1+ {[%clk 0:00:08]} 44. Kc7 {[%clk 0:00:24]}  Rb3 {[%clk 0:00:08]} 45. Rxb3 {[%clk 0:00:19]}  axb3 {[%clk 0:00:09]} 46. Kd6 {[%clk 0:00:20]}  Rb8 {[%clk 0:00:08]} 47. Rb7 {[%clk 0:00:20]}  Rd8+ {[%clk 0:00:07]} 48. Kc5 {[%clk 0:00:20]} 1-0


[Site "https://www.chess.com"]

[Event "Titled Tuesday Blitz March 28 Early 2023"]
[White "Perez Gormaz, Matias"]
[Black "Karthik, Venkataraman"]
[WhiteFideId "3406342"]
[BlackFideId "25006479"]
[WhiteElo "2362"]
[BlackElo "2419"]
[Result "0-1"]
[Round "11"]
[TimeControl "180+2"]
[Date "2023.03.28"]
[WhiteClock "0:00:02"]
[BlackClock "0:00:37"]

1. e4 {[%clk 0:03:00]}  Nc6 {[%clk 0:02:56]} 2. Nf3 {[%clk 0:03:00]}  e5 {[%clk 0:02:56]} 3. Bc4 {[%clk 0:02:59]}  Nf6 {[%clk 0:02:56]} 4. d3 {[%clk 0:02:59]}  Bc5 {[%clk 0:02:55]} 5. c3 {[%clk 0:02:57]}  d6 {[%clk 0:02:54]} 6. Bb3 {[%clk 0:02:55]}  a6 {[%clk 0:02:52]} 7. h3 {[%clk 0:02:54]}  Ba7 {[%clk 0:02:52]} 8. Nbd2 {[%clk 0:02:55]}  Be6 {[%clk 0:02:51]} 9. Nf1 {[%clk 0:02:51]}  O-O {[%clk 0:02:49]} 10. Ng3 {[%clk 0:02:50]}  Re8 {[%clk 0:02:48]} 11. O-O {[%clk 0:02:40]}  h6 {[%clk 0:02:46]} 12. Re1 {[%clk 0:02:37]}  d5 {[%clk 0:02:46]} 13. Qe2 {[%clk 0:02:27]}  Qd7 {[%clk 0:02:37]} 14. Nh4 {[%clk 0:02:22]}  Rad8 {[%clk 0:02:28]} 15. Bc2 {[%clk 0:02:15]}  d4 {[%clk 0:02:19]} 16. Nhf5 {[%clk 0:02:10]}  Kh7 {[%clk 0:02:19]} 17. Kh2 {[%clk 0:02:05]}  Ne7 {[%clk 0:02:12]} 18. Qf3 {[%clk 0:01:41]}  Nxf5 {[%clk 0:02:11]} 19. Nxf5 {[%clk 0:01:40]}  Bxf5 {[%clk 0:02:11]} 20. exf5 {[%clk 0:01:39]}  Qd5 {[%clk 0:02:02]} 21. Qxd5 {[%clk 0:01:20]}  Nxd5 {[%clk 0:02:03]} 22. Bd2 {[%clk 0:01:17]}  dxc3 {[%clk 0:02:03]} 23. bxc3 {[%clk 0:01:16]}  Bxf2 {[%clk 0:02:03]} 24. Re2 {[%clk 0:01:10]}  Bh4 {[%clk 0:02:02]} 25. g3 {[%clk 0:01:04]}  Bg5 {[%clk 0:02:02]} 26. Be1 {[%clk 0:01:04]}  Ne3 {[%clk 0:01:55]} 27. Bb3 {[%clk 0:00:57]}  Nxf5 {[%clk 0:01:34]} 28. Bxf7 {[%clk 0:00:50]}  Re7 {[%clk 0:01:33]} 29. Bc4 {[%clk 0:00:42]}  Ne3 {[%clk 0:01:28]} 30. Bb3 {[%clk 0:00:37]}  Rxd3 {[%clk 0:01:21]} 31. Bf2 {[%clk 0:00:38]}  e4 {[%clk 0:01:16]} 32. Rae1 {[%clk 0:00:34]}  Nf5 {[%clk 0:01:09]} 33. Rxe4 {[%clk 0:00:32]}  Rxe4 {[%clk 0:01:08]} 34. Rxe4 {[%clk 0:00:33]}  Rxc3 {[%clk 0:01:06]} 35. Re2 {[%clk 0:00:28]}  g6 {[%clk 0:01:04]} 36. Re8 {[%clk 0:00:23]}  Nd6 {[%clk 0:01:02]} 37. Rb8 {[%clk 0:00:19]}  Bf6 {[%clk 0:01:00]} 38. Kg2 {[%clk 0:00:12]}  h5 {[%clk 0:00:54]} 39. Be1 {[%clk 0:00:12]}  Re3 {[%clk 0:00:52]} 40. Bb4 {[%clk 0:00:12]}  Ne4 {[%clk 0:00:49]} 41. Rxb7 {[%clk 0:00:06]}  Rxg3+ {[%clk 0:00:49]} 42. Kf1 {[%clk 0:00:05]}  Be5 {[%clk 0:00:47]} 43. Bd5 {[%clk 0:00:03]}  Nf6 {[%clk 0:00:46]} 44. Bb3 {[%clk 0:00:03]}  Rxh3 {[%clk 0:00:45]} 45. Be7 {[%clk 0:00:03]}  Ng4 {[%clk 0:00:44]} 46. Bd8 {[%clk 0:00:03]}  Rh2 {[%clk 0:00:38]} 47. Bxc7 {[%clk 0:00:02]}  Ne3+ {[%clk 0:00:37]} 48. Ke1 {[%clk 0:00:02]}  Bc3# {[%clk 0:00:37]} 0-1


[Site "https://www.chess.com"]

[Event "Titled Tuesday Blitz March 28 Early 2023"]
[White "Iniyan, P"]
[Black "Aaditya Dhingra"]
[WhiteFideId "25002767"]
[BlackFideId "25678191"]
[WhiteElo "2449"]
[BlackElo "2083"]
[Result "1-0"]
[Round "11"]
[TimeControl "180+2"]
[Date "2023.03.28"]
[WhiteClock "0:02:39"]
[BlackClock "0:01:05"]

1. d4 {[%clk 0:03:00]}  Nf6 {[%clk 0:02:53]} 2. c4 {[%clk 0:03:01]}  c5 {[%clk 0:02:51]} 3. d5 {[%clk 0:03:01]}  e6 {[%clk 0:02:51]} 4. Nc3 {[%clk 0:03:01]}  exd5 {[%clk 0:02:51]} 5. cxd5 {[%clk 0:03:02]}  d6 {[%clk 0:02:51]} 6. e4 {[%clk 0:03:03]}  g6 {[%clk 0:02:51]} 7. Nge2 {[%clk 0:03:04]}  Bg7 {[%clk 0:02:51]} 8. Ng3 {[%clk 0:03:04]}  h5 {[%clk 0:02:50]} 9. Be2 {[%clk 0:03:04]}  a6 {[%clk 0:02:27]} 10. a4 {[%clk 0:03:03]}  Nbd7 {[%clk 0:02:25]} 11. O-O {[%clk 0:03:02]}  h4 {[%clk 0:02:22]} 12. Nh1 {[%clk 0:03:03]}  Nh7 {[%clk 0:02:09]} 13. Be3 {[%clk 0:02:59]}  O-O {[%clk 0:02:03]} 14. f4 {[%clk 0:02:53]}  Re8 {[%clk 0:02:03]} 15. e5 {[%clk 0:02:48]}  dxe5 {[%clk 0:02:02]} 16. f5 {[%clk 0:02:49]}  gxf5 {[%clk 0:01:59]} 17. Rxf5 {[%clk 0:02:49]}  Ndf8 {[%clk 0:01:54]} 18. Rf1 {[%clk 0:02:47]}  Ng6 {[%clk 0:01:51]} 19. Bd3 {[%clk 0:02:43]}  Nf6 {[%clk 0:01:22]} 20. Bg5 {[%clk 0:02:39]}  Qd6 {[%clk 0:01:09]} 21. Bxf6 {[%clk 0:02:39]}  Bxf6 {[%clk 0:01:05]} 22. Ne4 {[%clk 0:02:39]} 1-0


[Site "https://www.chess.com"]

[Event "Titled Tuesday Blitz March 28 Early 2023"]
[White "Wagner, Dennis"]
[Black "Danielyan, Vahe"]
[WhiteFideId "24650684"]
[BlackFideId "13304828"]
[WhiteElo "2470"]
[BlackElo "2423"]
[Result "1-0"]
[Round "11"]
[TimeControl "180+2"]
[Date "2023.03.28"]
[WhiteClock "0:00:20"]
[BlackClock "0:00:02"]

1. d4 {[%clk 0:02:56]}  Nf6 {[%clk 0:02:59]} 2. Nf3 {[%clk 0:02:56]}  g6 {[%clk 0:02:54]} 3. c4 {[%clk 0:02:53]}  Bg7 {[%clk 0:02:53]} 4. Nc3 {[%clk 0:02:53]}  O-O {[%clk 0:02:52]} 5. e4 {[%clk 0:02:53]}  d6 {[%clk 0:02:53]} 6. Be2 {[%clk 0:02:51]}  e5 {[%clk 0:02:52]} 7. O-O {[%clk 0:02:47]}  Bg4 {[%clk 0:02:49]} 8. d5 {[%clk 0:02:46]}  a5 {[%clk 0:02:44]} 9. Ne1 {[%clk 0:02:46]}  Bc8 {[%clk 0:02:40]} 10. Nd3 {[%clk 0:02:46]}  Na6 {[%clk 0:02:36]} 11. a3 {[%clk 0:02:43]}  Nc5 {[%clk 0:02:23]} 12. Nxc5 {[%clk 0:02:43]}  dxc5 {[%clk 0:02:24]} 13. Be3 {[%clk 0:02:44]}  b6 {[%clk 0:02:23]} 14. Qd2 {[%clk 0:02:35]}  Ne8 {[%clk 0:02:21]} 15. b4 {[%clk 0:02:18]}  axb4 {[%clk 0:02:13]} 16. axb4 {[%clk 0:02:19]}  Rxa1 {[%clk 0:02:12]} 17. Rxa1 {[%clk 0:02:20]}  cxb4 {[%clk 0:02:12]} 18. Nb5 {[%clk 0:02:21]}  Nd6 {[%clk 0:02:09]} 19. Nxd6 {[%clk 0:02:02]}  Qxd6 {[%clk 0:02:07]} 20. Qb2 {[%clk 0:01:55]}  f5 {[%clk 0:01:57]} 21. Bd2 {[%clk 0:01:53]}  c5 {[%clk 0:01:39]} 22. dxc6 {[%clk 0:01:51]}  Qxc6 {[%clk 0:01:40]} 23. Bxb4 {[%clk 0:01:51]}  Rd8 {[%clk 0:01:37]} 24. Bc3 {[%clk 0:01:26]}  Bb7 {[%clk 0:01:26]} 25. h3 {[%clk 0:01:02]}  fxe4 {[%clk 0:01:21]} 26. Bxe5 {[%clk 0:00:45]}  e3 {[%clk 0:01:06]} 27. Bf3 {[%clk 0:00:45]}  exf2+ {[%clk 0:01:06]} 28. Qxf2 {[%clk 0:00:45]}  Bxe5 {[%clk 0:00:35]} 29. Bxc6 {[%clk 0:00:42]}  Bxc6 {[%clk 0:00:26]} 30. Qe1 {[%clk 0:00:24]}  Bd4+ {[%clk 0:00:18]} 31. Kh2 {[%clk 0:00:22]}  Bxa1 {[%clk 0:00:17]} 32. Qe6+ {[%clk 0:00:21]}  Kg7 {[%clk 0:00:13]} 33. Qe7+ {[%clk 0:00:21]}  Kh6 {[%clk 0:00:06]} 34. Qxd8 {[%clk 0:00:21]}  Be5+ {[%clk 0:00:06]} 35. Kh1 {[%clk 0:00:21]}  Bg3 {[%clk 0:00:02]} 36. Qxb6 {[%clk 0:00:19]}  Be4 {[%clk 0:00:02]} 37. Qe3+ {[%clk 0:00:20]} 1-0


[Site "https://www.chess.com"]

[Event "Titled Tuesday Blitz March 28 Early 2023"]
[White "Timofeev, Artyom"]
[Black "Khumalo, Keith"]
[WhiteFideId "4140419"]
[BlackFideId "14319470"]
[WhiteElo "2586"]
[BlackElo "2056"]
[Result "1-0"]
[Round "11"]
[TimeControl "180+2"]
[Date "2023.03.28"]
[WhiteClock "0:00:05"]
[BlackClock "0:00:13"]

1. e4 {[%clk 0:03:00]}  e6 {[%clk 0:03:00]} 2. d4 {[%clk 0:02:59]}  d5 {[%clk 0:03:00]} 3. Nd2 {[%clk 0:02:59]}  c5 {[%clk 0:02:59]} 4. exd5 {[%clk 0:02:58]}  Qxd5 {[%clk 0:03:00]} 5. Ngf3 {[%clk 0:02:58]}  cxd4 {[%clk 0:03:00]} 6. Bc4 {[%clk 0:02:58]}  Qd8 {[%clk 0:03:01]} 7. O-O {[%clk 0:02:54]}  Nc6 {[%clk 0:03:01]} 8. Nb3 {[%clk 0:02:51]}  a6 {[%clk 0:03:02]} 9. Nbxd4 {[%clk 0:02:51]}  Nxd4 {[%clk 0:03:03]} 10. Qxd4 {[%clk 0:02:47]}  Qxd4 {[%clk 0:03:02]} 11. Nxd4 {[%clk 0:02:47]}  Bc5 {[%clk 0:03:02]} 12. Rd1 {[%clk 0:02:47]}  Bd7 {[%clk 0:02:54]} 13. Be3 {[%clk 0:02:45]}  Rc8 {[%clk 0:02:53]} 14. Be2 {[%clk 0:02:42]}  Nf6 {[%clk 0:02:53]} 15. Bf3 {[%clk 0:02:42]}  Bxd4 {[%clk 0:02:48]} 16. Bxd4 {[%clk 0:02:40]}  Bc6 {[%clk 0:02:49]} 17. Bxc6+ {[%clk 0:02:37]}  Rxc6 {[%clk 0:02:50]} 18. Bxf6 {[%clk 0:02:37]}  gxf6 {[%clk 0:02:49]} 19. Rd2 {[%clk 0:02:37]}  Ke7 {[%clk 0:02:49]} 20. Rad1 {[%clk 0:02:36]}  Rc7 {[%clk 0:02:50]} 21. c3 {[%clk 0:02:34]}  f5 {[%clk 0:02:50]} 22. Kf1 {[%clk 0:02:30]}  h5 {[%clk 0:02:49]} 23. Ke2 {[%clk 0:02:30]}  Rg8 {[%clk 0:02:49]} 24. g3 {[%clk 0:02:29]}  h4 {[%clk 0:02:47]} 25. Rd4 {[%clk 0:02:27]}  hxg3 {[%clk 0:02:48]} 26. hxg3 {[%clk 0:02:27]}  Rh8 {[%clk 0:02:48]} 27. a4 {[%clk 0:02:26]}  Rh2 {[%clk 0:02:46]} 28. a5 {[%clk 0:02:25]}  Rh5 {[%clk 0:02:43]} 29. b4 {[%clk 0:02:17]}  Rh8 {[%clk 0:02:18]} 30. c4 {[%clk 0:02:15]}  Rhc8 {[%clk 0:02:17]} 31. c5 {[%clk 0:02:15]}  Rh8 {[%clk 0:02:14]} 32. Ke3 {[%clk 0:02:13]}  Rh2 {[%clk 0:02:09]} 33. Rd8 {[%clk 0:02:09]}  Rh5 {[%clk 0:01:59]} 34. Rb8 {[%clk 0:02:06]}  Kf6 {[%clk 0:01:53]} 35. Rd6 {[%clk 0:02:05]}  Rh1 {[%clk 0:01:49]} 36. Rb6 {[%clk 0:02:04]}  Rd7 {[%clk 0:01:44]} 37. Rd6 {[%clk 0:01:41]}  Rc7 {[%clk 0:01:40]} 38. Ke2 {[%clk 0:01:40]}  Rb1 {[%clk 0:01:38]} 39. Rb6 {[%clk 0:01:39]}  Rb2+ {[%clk 0:01:38]} 40. Ke3 {[%clk 0:01:39]}  Rd7 {[%clk 0:01:38]} 41. R6xb7 {[%clk 0:01:35]}  Rdd2 {[%clk 0:01:37]} 42. c6 {[%clk 0:01:30]}  e5 {[%clk 0:01:30]} 43. c7 {[%clk 0:01:20]}  e4 {[%clk 0:01:30]} 44. Rd8 {[%clk 0:01:08]}  Re2+ {[%clk 0:01:20]} 45. Kd4 {[%clk 0:01:08]}  Rbc2 {[%clk 0:01:16]} 46. Rd6+ {[%clk 0:01:02]}  Kg5 {[%clk 0:01:12]} 47. Rxa6 {[%clk 0:00:47]}  Rxf2 {[%clk 0:01:05]} 48. Ra8 {[%clk 0:00:46]}  Rfd2+ {[%clk 0:01:05]} 49. Ke5 {[%clk 0:00:47]}  f6+ {[%clk 0:01:03]} 50. Ke6 {[%clk 0:00:47]}  e3 {[%clk 0:01:04]} 51. Rg8+ {[%clk 0:00:39]}  Kh6 {[%clk 0:01:02]} 52. c8=Q {[%clk 0:00:27]}  Rxc8 {[%clk 0:01:01]} 53. Rxc8 {[%clk 0:00:27]}  e2 {[%clk 0:00:56]} 54. Rh8+ {[%clk 0:00:27]}  Kg6 {[%clk 0:00:56]} 55. Rg8+ {[%clk 0:00:26]}  Kh6 {[%clk 0:00:56]} 56. Rh8+ {[%clk 0:00:19]}  Kg6 {[%clk 0:00:56]} 57. Rh1 {[%clk 0:00:14]}  Rd1 {[%clk 0:00:54]} 58. Rbh7 {[%clk 0:00:14]}  e1=Q+ {[%clk 0:00:52]} 59. Rxe1 {[%clk 0:00:14]}  Rxe1+ {[%clk 0:00:53]} 60. Kd5 {[%clk 0:00:14]}  Kxh7 {[%clk 0:00:53]} 61. a6 {[%clk 0:00:15]}  Rb1 {[%clk 0:00:49]} 62. Kc5 {[%clk 0:00:14]}  Kg6 {[%clk 0:00:46]} 63. b5 {[%clk 0:00:14]}  Kg5 {[%clk 0:00:47]} 64. b6 {[%clk 0:00:14]}  Kg4 {[%clk 0:00:48]} 65. a7 {[%clk 0:00:13]}  Rc1+ {[%clk 0:00:49]} 66. Kd6 {[%clk 0:00:12]}  Rd1+ {[%clk 0:00:49]} 67. Ke6 {[%clk 0:00:11]}  Ra1 {[%clk 0:00:50]} 68. b7 {[%clk 0:00:10]}  Rxa7 {[%clk 0:00:49]} 69. b8=Q {[%clk 0:00:10]}  Ra4 {[%clk 0:00:45]} 70. Qg8+ {[%clk 0:00:09]}  Kf3 {[%clk 0:00:45]} 71. Kxf6 {[%clk 0:00:09]}  Rg4 {[%clk 0:00:45]} 72. Qd5+ {[%clk 0:00:08]}  Kxg3 {[%clk 0:00:45]} 73. Kxf5 {[%clk 0:00:08]}  Rf4+ {[%clk 0:00:45]} 74. Ke5 {[%clk 0:00:08]}  Rg4 {[%clk 0:00:43]} 75. Qd2 {[%clk 0:00:07]}  Kf3 {[%clk 0:00:42]} 76. Kf5 {[%clk 0:00:07]}  Rg2 {[%clk 0:00:38]} 77. Qd3+ {[%clk 0:00:07]}  Kf2 {[%clk 0:00:38]} 78. Kf4 {[%clk 0:00:07]}  Kg1 {[%clk 0:00:28]} 79. Qd4+ {[%clk 0:00:08]}  Kf1 {[%clk 0:00:27]} 80. Kf3 {[%clk 0:00:08]}  Re2 {[%clk 0:00:13]} 81. Qd3 {[%clk 0:00:05]} 1-0


[Site "https://www.chess.com"]